bitfinex/quotes_BTCUSD_20251015
["timestamp","ask_amount","ask_price","bid_price","bid_amount"]
[1760558870078,3.55949635,111600.0,111590.0,0.5934394]
[1760558870480,3.55949635,111600.0,111590.0,0.17922752]
[1760558873508,3.55949635,111600.0,111590.0,0.5934394]
[1760558874689,3.55849635,111600.0,111590.0,0.5934394]
[1760558874925,3.55749635,111600.0,111590.0,0.5934394]
[1760558880798,0.11008955,111600.0,111590.0,0.5934394]
[1760558881328,0.11008955,111600.0,111590.0,0.68312952]
[1760558881587,8.955e-05,111600.0,111590.0,1.13352368]
[1760558881821,8.955e-05,111600.0,111590.0,1.1604692]
[1760558882256,8.955e-05,111600.0,111590.0,0.74625732]
[1760558882679,8.955e-05,111600.0,111590.0,0.74725732]
[1760558884370,8.955e-05,111600.0,111590.0,1.1614692]
[1760558884825,8.955e-05,111600.0,111590.0,0.33304544]
[1760558885302,8.955e-05,111600.0,111590.0,0.7203118]
[1760558885970,8.955e-05,111600.0,111590.0,0.8693118]
[1760558886204,8.955e-05,111600.0,111590.0,0.8683118]
[1760558886638,8.955e-05,111600.0,111590.0,0.8693118]
[1760558890311,0.04008955,111600.0,111590.0,0.32922752]
[1760558890746,0.04008955,111600.0,111590.0,0.7434394]
[1760558891428,8.955e-05,111600.0,111590.0,0.7434394]
[1760558893447,8.955e-05,111600.0,111590.0,0.8693118]
[1760558893876,8.955e-05,111600.0,111590.0,0.89625819]
[1760558894087,8.955e-05,111600.0,111590.0,0.48204631]
[1760558894338,8.955e-05,111600.0,111590.0,0.89625819]
[1760558897167,8.955e-05,111600.0,111590.0,1.31047007]
[1760558897576,8.955e-05,111600.0,111590.0,0.48204631]
[1760558897781,8.955e-05,111600.0,111590.0,1.31047007]
[1760558899813,8.955e-05,111600.0,111590.0,1.42315007]
[1760558900017,8.955e-05,111600.0,111590.0,1.31047007]
[1760558900213,8.955e-05,111600.0,111590.0,1.42315007]
[1760558900432,8.955e-05,111600.0,111590.0,1.31047007]
[1760558900831,8.955e-05,111600.0,111590.0,1.76315007]
[1760558902333,8.955e-05,111600.0,111590.0,1.65047007]
[1760558902759,8.955e-05,111600.0,111590.0,1.76315007]
[1760558903384,8.955e-05,111600.0,111590.0,1.65047007]
[1760558903614,8.955e-05,111600.0,111590.0,1.76315007]
[1760558904032,8.955e-05,111600.0,111590.0,1.65047007]
[1760558904699,8.955e-05,111600.0,111590.0,1.76315007]
[1760558905079,8.955e-05,111600.0,111590.0,1.65047007]
[1760558905291,8.955e-05,111600.0,111590.0,1.76315007]
[1760558905504,8.955e-05,111600.0,111590.0,1.65047007]
[1760558905714,8.955e-05,111600.0,111590.0,1.76315007]
[1760558905964,0.42668839,111630.0,111620.0,0.17917935]
[1760558906147,0.55668839,111630.0,111620.0,0.17917935]
[1760558906380,0.14247651,111630.0,111620.0,0.17917935]
[1760558907023,0.14247651,111630.0,111620.0,0.59339123]
[1760558909194,0.13,111630.0,111620.0,1.00760311]
[1760558909609,0.13,111630.0,111620.0,0.59339123]
[1760558910989,0.42914186,111650.0,111640.0,0.17914725]
[1760558911201,3.42972345,111650.0,111640.0,0.17914725]
[1760558911830,3.84393533,111650.0,111640.0,0.17914725]
[1760558912244,3.42972345,111650.0,111640.0,0.17914725]
[1760558912451,3.43072345,111650.0,111640.0,0.17914725]
[1760558912656,3.43172345,111650.0,111640.0,0.17914725]
[1760558914118,3.84593533,111650.0,111640.0,0.17914725]
[1760558914529,3.43172345,111650.0,111640.0,0.17914725]
[1760558915367,3.4149472,111650.0,111640.0,0.17914725]
[1760558915582,3.82915908,111650.0,111640.0,0.17914725]
[1760558915794,4.03101181,111650.0,111640.0,0.17914725]
[1760558916011,4.04777987,111650.0,111640.0,0.17914725]
[1760558916220,4.03101181,111650.0,111640.0,0.17914725]
[1760558919201,4.00829029,111650.0,111640.0,0.17914725]
[1760558921557,4.00782744,111650.0,111640.0,0.17914725]
[1760558921992,3.59407841,111650.0,111640.0,0.17914725]
[1760558922205,4.00782744,111650.0,111640.0,0.17914725]
[1760558922653,4.00782744,111650.0,111630.0,0.18810687]
[1760558922859,4.09750952,111650.0,111640.0,0.17914725]
[1760558923749,3.361881,111630.0,111620.0,0.25989041]
[1760558923955,0.12,111630.0,111620.0,0.25989041]
[1760558924376,0.12,111630.0,111620.0,0.18813831]
[1760558930719,0.53374903,111630.0,111620.0,0.18813831]
[1760558931145,0.17917935,111620.0,111610.0,0.20612148]
[1760558931365,0.71292838,111620.0,111610.0,0.17919541]
[1760558932207,0.12,111620.0,111610.0,0.17919541]
[1760558938310,0.64292838,111620.0,111610.0,0.17919541]
[1760558938517,4.01376834,111620.0,111580.0,0.25991124]
[1760558938733,3.95482544,111610.0,111600.0,0.17920389]
[1760558938976,4.06482544,111610.0,111600.0,0.17920389]
[1760558941929,3.88563003,111610.0,111600.0,0.17920389]
[1760558942575,4.06482544,111610.0,111600.0,0.17920389]
[1760558942818,4.15218154,111610.0,111600.0,0.17920389]
[1760558943452,3.73843251,111610.0,111600.0,0.17920389]
[1760558943666,4.06482544,111610.0,111600.0,0.17920389]
[1760558945250,3.65107641,111610.0,111600.0,0.17920389]
[1760558945468,3.471881,111610.0,111600.0,0.17920389]
[1760558945714,4.06482544,111610.0,111600.0,0.17920389]
[1760558946311,4.13073589,111610.0,111600.0,0.17921146]
[1760558946531,3.361881,111600.0,111590.0,0.32822731]
[1760558946736,3.381881,111600.0,111590.0,0.32822731]
[1760558946940,0.61296049,111600.0,111590.0,0.32822752]
[1760558947143,0.43374903,111600.0,111590.0,0.32822752]
[1760558947371,0.61296049,111600.0,111590.0,0.32822752]
[1760558947573,0.69876712,111600.0,111590.0,0.17922752]
[1760558948330,0.51955566,111600.0,111590.0,0.18022752]
[1760558948520,0.43374903,111600.0,111590.0,0.18022752]
[1760558949563,0.02,111600.0,111590.0,0.18022752]
[1760558961604,0.02,111600.0,111590.0,0.59397655]
[1760558961719,3.72120559,111620.0,111610.0,0.17919541]
[1760558961961,3.88636795,111620.0,111610.0,0.17919541]
[1760558962576,4.0655473,111620.0,111610.0,0.17919541]
[1760558963805,3.88637212,111620.0,111610.0,0.17919541]
[1760558965703,4.06555147,111620.0,111610.0,0.17919541]
[1760558966467,3.54637212,111620.0,111610.0,0.17919541]
[1760558966684,3.54637824,111620.0,111610.0,0.17919541]
[1760558973299,3.52705365,111620.0,111610.0,0.17919541]
[1760558975447,3.94080268,111620.0,111610.0,0.17919541]
[1760558977065,3.361881,111590.0,111580.0,0.25099569]
[1760558977265,0.28922752,111590.0,111580.0,0.25108524]
[1760558977467,0.11,111590.0,111580.0,0.25108524]
[1760558977673,0.11,111590.0,111580.0,0.17933314]
[1760558978118,0.11,111590.0,111580.0,0.18033314]
[1760558978722,0.11,111590.0,111580.0,0.17933314]
[1760558978895,0.11,111590.0,111580.0,0.18033314]
[1760558981493,0.12161721,111590.0,111580.0,0.18033314]
[1760558981913,0.53571225,111590.0,111580.0,0.18033314]
[1760558982323,0.12161721,111590.0,111580.0,0.18033314]
[1760558989357,0.12161721,111590.0,111580.0,0.74342818]
[1760558992087,0.12161721,111590.0,111580.0,0.59442818]
[1760558992329,0.11,111590.0,111580.0,1.00852322]
[1760558992546,4.11597604,111610.0,111600.0,0.17921146]
[1760558992764,4.26274166,111610.0,111600.0,0.17921146]
[1760558992968,4.27467354,111610.0,111600.0,0.17921146]
[1760558993180,3.50381288,111610.0,111600.0,0.17921146]
[1760558994247,3.50381288,111610.0,111600.0,0.5933065]
[1760558997280,0.13,111610.0,111600.0,1.00740154]
[1760558997522,0.13,111610.0,111600.0,0.5933065]
[1760558998910,0.13,111610.0,111600.0,1.00740154]
[1760558999502,0.13,111610.0,111600.0,1.09709166]
[1760558999758,0.13,111610.0,111600.0,0.26890158]
[1760558999970,0.13,111610.0,111600.0,0.68299662]
[1760559000178,0.13,111610.0,111600.0,0.26890158]
[1760559000355,0.13,111610.0,111600.0,0.68299662]
[1760559000591,0.13,111610.0,111600.0,0.68399662]
[1760559004168,0.13,111610.0,111600.0,0.83299662]
[1760559004369,0.13,111610.0,111600.0,1.24709166]
[1760559007675,0.13,111610.0,111600.0,0.83299662]
[1760559009930,0.13,111610.0,111600.0,0.18021146]
[1760559010341,0.54409504,111610.0,111600.0,0.18021146]
[1760559010852,0.54403569,111610.0,111600.0,0.18021146]
[1760559011259,0.54403569,111610.0,111600.0,0.17921146]
[1760559011833,0.54403569,111610.0,111600.0,0.18021146]
[1760559012030,0.12994065,111610.0,111600.0,0.18021146]
[1760559012292,0.54403569,111610.0,111600.0,0.18021146]
[1760559013264,0.12994065,111610.0,111600.0,0.18021146]
[1760559014500,0.36463762,111610.0,111600.0,0.18021146]
[1760559014872,0.54403569,111610.0,111600.0,0.18021146]
[1760559016037,0.12994065,111610.0,111600.0,0.18021146]
[1760559018273,0.54403569,111610.0,111600.0,0.18021146]
[1760559019679,0.12994065,111610.0,111600.0,1.00840154]
[1760559019891,3.361881,111640.0,111630.0,0.1791633]
[1760559020093,3.491881,111640.0,111630.0,0.1791633]
[1760559020300,3.491881,111640.0,111630.0,0.59325834]
[1760559020509,3.50290544,111640.0,111630.0,0.59325834]
[1760559021129,3.50395549,111640.0,111630.0,0.59325834]
[1760559021330,0.13205005,111640.0,111630.0,0.59325834]
[1760559022154,0.13005005,111640.0,111630.0,0.59325834]
[1760559022358,0.13005005,111640.0,111630.0,0.68394846]
[1760559022953,0.13005005,111640.0,111630.0,1.0980435]
[1760559023185,0.13005005,111640.0,111630.0,0.68394846]
[1760559023587,0.13005005,111640.0,111630.0,0.68294846]
[1760559023904,0.13005005,111640.0,111630.0,1.0980435]
[1760559024742,0.13005005,111640.0,111630.0,0.68394846]
[1760559025210,0.35124445,111660.0,111650.0,0.17913121]
[1760559025444,4.39923628,111660.0,111630.0,0.26985342]
[1760559025654,0.41409504,111650.0,111640.0,0.17914489]
[1760559025860,0.54409504,111650.0,111640.0,0.17914489]
[1760559026708,4.08510725,111650.0,111640.0,0.17914489]
[1760559027121,3.91711562,111650.0,111640.0,0.17914489]
[1760559029013,4.0067977,111650.0,111640.0,0.17914489]
[1760559029882,3.91711562,111650.0,111640.0,0.17914489]
[1760559030200,0.73436583,111650.0,111620.0,0.18813831]
[1760559030426,0.1791633,111630.0,111620.0,0.17917935]
[1760559030653,0.70325834,111630.0,111620.0,0.17917935]
[1760559031538,0.11,111630.0,111620.0,0.17917935]
[1760559031747,0.52409504,111630.0,111620.0,0.17917935]
[1760559035547,0.5982602,111630.0,111620.0,0.17917935]
[1760559036163,0.52409504,111630.0,111620.0,0.17917935]
[1760559038744,0.11,111630.0,111620.0,0.17917935]
[1760559038979,0.52409504,111630.0,111620.0,0.17917935]
[1760559042151,0.11,111630.0,111620.0,0.17917935]
[1760559043046,0.52409504,111630.0,111620.0,0.17917935]
[1760559043461,0.11,111630.0,111620.0,0.17917935]
[1760559044869,0.12378674,111630.0,111620.0,0.17917935]
[1760559045632,0.11,111630.0,111620.0,0.17917935]
[1760559049428,3.431881,111630.0,111620.0,0.17917935]
[1760559049642,0.2491633,111630.0,111620.0,0.17917935]
[1760559051459,0.07,111630.0,111620.0,0.17917935]
[1760559058841,0.48381634,111630.0,111620.0,0.17917935]
[1760559059669,0.55011305,111630.0,111620.0,0.17917935]
[1760559060302,0.48381634,111630.0,111620.0,0.17917935]
[1760559061123,0.07,111630.0,111620.0,0.17917935]
[1760559069433,0.07,111630.0,111620.0,0.32817935]
[1760559098018,0.48381634,111630.0,111620.0,0.32817935]
[1760559098869,0.48381634,111630.0,111620.0,0.17917935]
[1760559099075,0.53546308,111630.0,111620.0,0.17917935]
[1760559099877,0.07,111630.0,111620.0,0.17917935]
[1760559103573,0.48383364,111630.0,111620.0,0.17917935]
[1760559118509,0.48383364,111630.0,111610.0,0.18813912]
[1760559118510,3.361881,111620.0,111610.0,0.18813912]
[1760559118721,0.53383364,111620.0,111610.0,0.18813912]
[1760559119351,0.71301299,111620.0,111600.0,0.17921146]
[1760559119680,3.77571464,111610.0,111600.0,0.17926151]
[1760559120059,4.08491005,111610.0,111600.0,5.005e-05]
[1760559120300,4.49874369,111610.0,111600.0,5.005e-05]
[1760559120528,4.05559446,111610.0,111600.0,5.005e-05]
[1760559120758,4.29023269,111610.0,111600.0,0.17926151]
[1760559121209,4.27089416,111610.0,111600.0,0.17926151]
[1760559121462,4.27089416,111610.0,111600.0,0.18026151]
[1760559121700,4.11567405,111610.0,111600.0,0.18026151]
[1760559121958,4.11567405,111610.0,111600.0,0.17926151]
[1760559122410,4.09890472,111610.0,111600.0,0.17926151]
[1760559122620,3.68507108,111610.0,111600.0,0.17926151]
[1760559122812,4.00922264,111610.0,111600.0,0.17926151]
[1760559123457,0.13,111610.0,111600.0,0.17926151]
[1760559123672,0.13,111610.0,111600.0,0.59309515]
[1760559124773,0.13,111610.0,111600.0,0.59509515]
[1760559125919,0.13,111610.0,111600.0,0.18126151]
[1760559130428,0.598217,111610.0,111600.0,0.18126151]
[1760559130604,0.54383364,111610.0,111600.0,0.18126151]
[1760559131505,0.54383364,111610.0,111600.0,0.33026151]
[1760559132535,3.84841805,111610.0,111600.0,0.33026151]
[1760559132734,3.66922264,111610.0,111600.0,0.33026151]
[1760559132944,3.255389,111610.0,111600.0,0.33026151]
[1760559133175,3.66922264,111610.0,111600.0,0.33026151]
[1760559135514,3.255389,111610.0,111600.0,0.33026151]
[1760559135700,0.13,111610.0,111600.0,0.59509515]
[1760559136622,0.13,111610.0,111600.0,0.18126151]
[1760559139387,0.54383364,111610.0,111600.0,0.18126151]
[1760559141408,3.66922264,111610.0,111600.0,0.18126151]
[1760559142678,3.255389,111610.0,111600.0,0.18126151]
[1760559142895,3.66922264,111610.0,111600.0,0.18126151]
[1760559147684,3.43090464,111610.0,111600.0,0.18126151]
[1760559147893,3.45090464,111610.0,111600.0,0.18126151]
[1760559148126,0.02,111610.0,111600.0,0.18126151]
[1760559148791,0.02,111610.0,111600.0,0.59509515]
[1760559150033,0.02,111610.0,111600.0,0.18126151]
[1760559152044,0.02,111610.0,111600.0,0.59509515]
[1760559162607,0.02,111610.0,111600.0,0.18126151]
[1760559162811,0.02,111610.0,111600.0,0.59509515]
[1760559164122,3.43090464,111630.0,111620.0,0.17917935]
[1760559164329,3.54090464,111630.0,111620.0,0.17917935]
[1760559165646,3.127071,111630.0,111620.0,0.17917935]
[1760559167581,3.75163147,111630.0,111620.0,0.17917935]
[1760559168367,3.57246817,111630.0,111620.0,0.17917935]
[1760559169213,3.54088424,111630.0,111620.0,0.17917935]
[1760559170906,3.72004754,111630.0,111620.0,0.17917935]
[1760559174909,3.72843263,111630.0,111620.0,0.17917935]
[1760559175889,3.72843361,111630.0,111620.0,0.17917935]
[1760559177488,3.74520892,111630.0,111620.0,0.17917935]
[1760559178581,3.834891,111630.0,111620.0,0.17917935]
[1760559181246,3.13545707,111630.0,111620.0,0.17917935]
[1760559181454,3.127071,111630.0,111620.0,0.17917935]
[1760559182105,0.11,111630.0,111620.0,0.59299259]
[1760559182304,0.11,111630.0,111620.0,0.17917935]
[1760559182515,0.11,111630.0,111620.0,0.59299259]
[1760559183569,0.11,111630.0,111620.0,0.59399259]
[1760559185599,0.11,111630.0,111620.0,0.18117935]
[1760559186413,0.52381324,111630.0,111620.0,0.18117935]
[1760559186620,0.59410941,111630.0,111620.0,0.18117935]
[1760559186838,4.06004754,111630.0,111620.0,0.002]
[1760559187046,4.06004754,111630.0,111620.0,0.18117935]
[1760559188088,4.06004754,111630.0,111620.0,0.17917935]
[1760559188331,3.88088424,111630.0,111620.0,0.17917935]
[1760559188516,4.47386078,111630.0,111620.0,0.17917935]
[1760559188726,4.14972962,111630.0,111620.0,0.17917935]
[1760559191305,3.88088424,111630.0,111620.0,0.17917935]
[1760559197404,3.127071,111630.0,111620.0,0.17917935]
[1760559197835,0.11,111630.0,111620.0,0.59299259]
[1760559198796,0.11,111630.0,111620.0,0.17917935]
[1760559199196,0.11,111630.0,111620.0,0.59299259]
[1760559202227,0.11,111630.0,111620.0,0.17917935]
[1760559202456,0.11,111630.0,111620.0,0.59299259]
[1760559205547,0.11,111630.0,111620.0,0.17917935]
[1760559208443,0.11,111630.0,111620.0,0.32817935]
[1760559209595,0.11,111630.0,111620.0,0.17917935]
[1760559211244,0.11,111630.0,111620.0,0.59299259]
[1760559213250,0.53647668,111650.0,111640.0,0.17914725]
[1760559213488,3.157071,111650.0,111640.0,0.17914725]
[1760559213696,0.14,111650.0,111640.0,0.59296049]
[1760559213909,0.14,111650.0,111640.0,0.17914725]
[1760559214774,0.17082696,111650.0,111640.0,0.17914725]
[1760559216269,0.14,111650.0,111640.0,0.59296049]
[1760559216903,0.14,111650.0,111640.0,0.17914725]
[1760559218419,0.17043742,111650.0,111640.0,0.17914725]
[1760559221507,0.14,111650.0,111640.0,0.17914725]
[1760559222131,0.17153221,111650.0,111640.0,0.17914725]
[1760559222698,0.14,111650.0,111640.0,0.17914725]
[1760559225560,0.14,111650.0,111640.0,0.59271213]
[1760559226640,0.14,111650.0,111640.0,1.00627701]
[1760559227095,0.14,111650.0,111640.0,0.59271213]
[1760559229080,0.14,111650.0,111640.0,1.00627701]
[1760559229326,0.14,111650.0,111640.0,0.59271213]
[1760559233328,0.14,111650.0,111640.0,1.00627701]
[1760559233776,0.55,111680.0,111670.0,0.17909913]
[1760559233777,3.357071,111680.0,111670.0,0.17909913]
[1760559234031,3.93583455,111680.0,111670.0,0.17909913]
[1760559234253,3.93583455,111680.0,111630.0,0.18810687]
[1760559234254,3.017071,111660.0,111630.0,0.18810687]
[1760559234465,3.017071,111660.0,111640.0,0.17913717]
[1760559234466,3.017071,111650.0,111640.0,0.17913717]
[1760559234675,3.017071,111650.0,111640.0,0.20607083]
[1760559234676,0.29913121,111650.0,111640.0,0.20607083]
[1760559234907,0.29913121,111650.0,111640.0,0.17913717]
[1760559235527,1.12626097,111650.0,111640.0,0.17913717]
[1760559235708,0.71269609,111650.0,111640.0,0.17913717]
[1760559236098,0.48771307,111650.0,111640.0,0.17913717]
[1760559236751,0.07414819,111650.0,111640.0,0.17913717]
[1760559237159,0.48771307,111650.0,111640.0,0.17913717]
[1760559237599,0.66684428,111650.0,111640.0,0.17913717]
[1760559238397,1.08040916,111650.0,111640.0,0.17913717]
[1760559238636,0.90127795,111650.0,111640.0,0.17913717]
[1760559239187,0.99096003,111650.0,111640.0,0.17913717]
[1760559239779,0.48771307,111650.0,111640.0,0.17913717]
[1760559240220,1.08040916,111650.0,111640.0,0.17913717]
[1760559240650,0.48771307,111650.0,111640.0,0.17913717]
[1760559242949,0.07414819,111650.0,111640.0,0.17913717]
[1760559243167,0.48771307,111650.0,111640.0,0.17913717]
[1760559252436,3.19625037,111620.0,111600.0,0.0717521]
[1760559252649,1.34632517,111610.0,111600.0,0.0717521]
[1760559252864,0.17922613,111600.0,111580.0,0.2509948]
[1760559253087,0.41356488,111590.0,111580.0,0.2509948]
[1760559253297,0.45356488,111590.0,111580.0,0.1792427]
[1760559253726,0.45356488,111590.0,111580.0,0.17929275]
[1760559254141,0.48073233,111590.0,111580.0,0.17929275]
[1760559254349,0.48073233,111590.0,111580.0,0.18029275]
[1760559255393,0.48073233,111590.0,111580.0,0.18129275]
[1760559257516,0.02716745,111590.0,111580.0,0.18129275]
[1760559257962,0.41356488,111600.0,111590.0,0.17922752]
[1760559258156,0.45356488,111600.0,111590.0,0.17922752]
[1760559259278,0.45356488,111600.0,111590.0,0.18022752]
[1760559260151,3.88420076,111600.0,111590.0,0.18022752]
[1760559260362,3.88420076,111600.0,111590.0,0.18122752]
[1760559261593,3.91105374,111600.0,111590.0,0.18122752]
[1760559262960,3.08392398,111600.0,111590.0,0.18122752]
[1760559263316,3.49748886,111600.0,111590.0,0.18122752]
[1760559263512,0.48041786,111600.0,111590.0,0.18122752]
[1760559263960,0.06685298,111600.0,111590.0,0.18122752]
[1760559264202,0.02685298,111600.0,111590.0,0.18122752]
[1760559264318,0.44041786,111600.0,111590.0,0.18122752]
[1760559264517,0.41356488,111600.0,111590.0,0.18122752]
[1760559265432,0.75356488,111610.0,111600.0,0.17921146]
[1760559265576,3.90063588,111610.0,111600.0,0.17921146]
[1760559267224,0.13,111610.0,111600.0,0.59277634]
[1760559267439,0.13,111610.0,111600.0,0.17921146]
[1760559270247,0.41356488,111630.0,111620.0,0.17917935]
[1760559270461,0.55356488,111630.0,111620.0,0.17917935]
[1760559270687,0.14,111630.0,111620.0,0.17917935]
[1760559271141,0.14,111630.0,111620.0,0.59274423]
[1760559271351,0.14,111630.0,111620.0,0.17917935]
[1760559271501,0.14,111630.0,111620.0,0.1802294]
[1760559272343,0.14,111630.0,111620.0,0.59379428]
[1760559272552,0.14,111630.0,111620.0,0.59479428]
[1760559273379,0.14,111630.0,111620.0,0.6844844]
[1760559283894,0.55356488,111630.0,111620.0,0.27091952]
[1760559287565,0.14,111630.0,111620.0,0.27091952]
[1760559295823,0.55376804,111630.0,111620.0,0.1812294]
[1760559297630,0.57784791,111630.0,111620.0,0.1812294]
[1760559297984,0.55376804,111630.0,111620.0,0.1812294]
[1760559300282,0.56216371,111630.0,111620.0,0.1812294]
[1760559301350,0.55376804,111630.0,111620.0,0.1812294]
[1760559303104,0.55376804,111630.0,111620.0,0.3302294]
[1760559303577,0.55376804,111630.0,111620.0,0.3352758]
[1760559315658,0.14,111630.0,111620.0,0.83873396]
[1760559315895,3.43083904,111650.0,111640.0,0.17914725]
[1760559316131,3.92191382,111650.0,111640.0,0.17914725]
[1760559316257,4.13717921,111650.0,111640.0,0.17914725]
[1760559317079,4.12450049,111650.0,111640.0,0.17914725]
[1760559317465,4.12450049,111650.0,111630.0,0.18812146]
[1760559317678,3.43083904,111640.0,111630.0,0.18812146]
[1760559317902,3.5692351,111640.0,111630.0,0.18812146]
[1760559318335,3.017071,111630.0,111620.0,0.17922581]
[1760559318548,3.017071,111630.0,111620.0,5.005e-05]
[1760559318549,1.48669938,111630.0,111620.0,5.005e-05]
[1760559318792,4.54829589,111630.0,111620.0,0.1792294]
[1760559319132,4.34979104,111630.0,111620.0,0.1792294]
[1760559319291,4.3329993,111630.0,111620.0,0.1792294]
[1760559320159,4.32460708,111630.0,111620.0,0.1792294]
[1760559321840,4.50377038,111630.0,111620.0,0.1792294]
[1760559322051,4.09000234,111630.0,111620.0,0.1792294]
[1760559322306,4.50377038,111630.0,111620.0,0.1842758]
[1760559322715,4.32460708,111630.0,111620.0,0.1842758]
[1760559323378,4.50377038,111630.0,111620.0,0.1842758]
[1760559325173,4.32460708,111630.0,111620.0,0.1842758]
[1760559325398,4.59345246,111630.0,111620.0,0.00509645]
[1760559325609,4.50377038,111630.0,111620.0,0.1842758]
[1760559325825,4.50377038,111630.0,111620.0,0.00509645]
[1760559326028,4.50377038,111630.0,111620.0,0.1842758]
[1760559327277,4.25412837,111630.0,111620.0,0.1842758]
[1760559329096,4.07496507,111630.0,111620.0,0.1842758]
[1760559330756,3.91083904,111630.0,111620.0,0.1842758]
[1760559335520,4.17968442,111630.0,111620.0,0.1842758]
[1760559336143,4.59345246,111630.0,111620.0,0.1842758]
[1760559336359,4.17968442,111630.0,111620.0,0.1842758]
[1760559336781,3.91083904,111630.0,111620.0,0.1842758]
[1760559337457,4.09000234,111630.0,111620.0,0.1842758]
[1760559340036,3.45083904,111630.0,111620.0,0.1842758]
[1760559345075,0.02,111630.0,111620.0,0.1842758]
[1760559345302,0.02,111630.0,111620.0,0.59804384]
[1760559345756,0.02,111630.0,111620.0,0.68773396]
[1760559345975,0.4507099,111660.0,111650.0,0.17913121]
[1760559345976,3.9577809,111660.0,111650.0,0.17913121]
[1760559346199,3.58617255,111660.0,111650.0,0.17913121]
[1760559346644,3.5739058,111660.0,111650.0,0.17913121]
[1760559347746,3.5749058,111660.0,111650.0,0.17913121]
[1760559348175,3.5759058,111660.0,111650.0,0.17913121]
[1760559349468,3.57577413,111660.0,111650.0,0.17913121]
[1760559350335,3.9894105,111660.0,111650.0,0.17913121]
[1760559350756,3.57577413,111660.0,111650.0,0.17913121]
[1760559351619,3.57577413,111660.0,111650.0,0.18242567]
[1760559353502,0.14506676,111660.0,111650.0,0.18242567]
[1760559353931,0.122,111660.0,111650.0,0.59606204]
[1760559354341,0.121,111660.0,111650.0,0.59606204]
[1760559354543,0.12,111660.0,111650.0,0.59706204]
[1760559354759,0.12,111660.0,111650.0,0.59806204]
[1760559356791,0.1433828,111660.0,111650.0,0.18442567]
[1760559360817,0.12,111660.0,111650.0,0.59806204]
[1760559361046,0.12,111660.0,111650.0,0.18442567]
[1760559361256,0.55635589,111660.0,111650.0,0.18442567]
[1760559361675,3.98706326,111660.0,111650.0,0.18442567]
[1760559361951,4.16617843,111660.0,111650.0,0.00529446]
[1760559362173,4.16617843,111660.0,111650.0,0.18442567]
[1760559362401,4.16617843,111660.0,111650.0,0.18342567]
[1760559362868,4.22811902,111660.0,111650.0,0.00329446]
[1760559364856,4.25505866,111660.0,111650.0,0.00329446]
[1760559366929,4.25705866,111660.0,111650.0,0.00329446]
[1760559367347,4.19411807,111660.0,111650.0,0.00329446]
[1760559368852,4.19511807,111660.0,111650.0,0.00329446]
[1760559369150,4.20348003,111660.0,111650.0,0.00329446]
[1760559370231,4.20348003,111660.0,111650.0,0.18242567]
[1760559370435,4.20348003,111660.0,111650.0,0.00329446]
[1760559370646,4.20348003,111660.0,111650.0,0.18242567]
[1760559370856,3.19709212,111660.0,111650.0,0.18242567]
[1760559371081,4.02436486,111660.0,111650.0,0.18242567]
[1760559371706,3.37620729,111660.0,111650.0,0.18242567]
[1760559371925,4.20248003,111660.0,111650.0,0.18242567]
[1760559372145,3.78784366,111660.0,111650.0,0.18242567]
[1760559373246,3.60872849,111660.0,111650.0,0.18242567]
[1760559375109,3.58178885,111660.0,111650.0,0.18242567]
[1760559376173,3.8505861,111660.0,111650.0,0.18242567]
[1760559376399,4.26424023,111660.0,111650.0,0.18242567]
[1760559377489,4.17455815,111660.0,111650.0,0.18242567]
[1760559377699,3.99544298,111660.0,111650.0,0.18242567]
[1760559378146,4.17455815,111660.0,111650.0,0.18242567]
[1760559378988,3.95075763,111660.0,111650.0,0.18242567]
[1760559379241,4.00075748,111660.0,111650.0,0.18242567]
[1760559379424,3.17348474,111660.0,111650.0,0.18242567]
[1760559379665,3.1932023,111660.0,111650.0,0.18242567]
[1760559379877,3.60683867,111660.0,111650.0,0.18242567]
[1760559381639,4.02047504,111660.0,111650.0,0.00329446]
[1760559381851,4.07341545,111660.0,111650.0,0.00329446]
[1760559387431,4.07341545,111660.0,111650.0,0.18242567]
[1760559387644,3.24614271,111660.0,111650.0,0.18242567]
[1760559387865,4.07341545,111660.0,111650.0,0.18242567]
[1760559388106,4.07342873,111660.0,111650.0,0.00329446]
[1760559388959,4.09275008,111660.0,111650.0,0.00329446]
[1760559389639,4.18243216,111660.0,111650.0,0.00329446]
[1760559390504,4.09275008,111660.0,111650.0,0.18242567]
[1760559392009,4.50638645,111660.0,111650.0,0.00329446]
[1760559392231,4.87046212,111660.0,111650.0,0.00329446]
[1760559392440,4.89740435,111660.0,111650.0,0.00329446]
[1760559393076,4.48376798,111660.0,111650.0,0.00329446]
[1760559393507,4.48476798,111660.0,111650.0,0.00329446]
[1760559394150,4.48576798,111660.0,111650.0,0.00329446]
[1760559394349,4.49645188,111660.0,111650.0,0.00329446]
[1760559394598,4.46169231,111660.0,111650.0,0.00329446]
[1760559395686,3.63441957,111660.0,111650.0,0.00329446]
[1760559395896,4.46169231,111660.0,111650.0,0.00329446]
[1760559397459,4.87532868,111660.0,111650.0,0.00329446]
[1760559409495,4.46202523,111660.0,111650.0,0.00329446]
[1760559409766,4.55170731,111660.0,111650.0,0.00329446]
[1760559411143,4.59900247,111660.0,111650.0,0.00329446]
[1760559412423,4.59900052,111660.0,111650.0,0.00329446]
[1760559413958,4.48609895,111660.0,111650.0,0.00329446]
[1760559414836,4.46202328,111660.0,111650.0,0.00329446]
[1760559417362,4.48609895,111660.0,111650.0,0.00329446]
[1760559418312,3.86910528,111660.0,111650.0,0.18242567]
[1760559418552,3.832923,111660.0,111650.0,0.18242567]
[1760559418767,3.4492154,111660.0,111650.0,0.18242567]
[1760559418986,3.42989405,111660.0,111650.0,0.18242567]
[1760559419631,3.42151039,111660.0,111650.0,0.18242567]
[1760559424797,0.07171756,111660.0,111650.0,0.18242567]
[1760559425662,0.052,111660.0,111650.0,0.18242567]
[1760559426931,0.0726968,111660.0,111650.0,0.18242567]
[1760559431610,0.052,111660.0,111650.0,0.18242567]
[1760559436173,0.052,111660.0,111650.0,0.33142567]
[1760559436856,0.051,111660.0,111650.0,0.33142567]
[1760559437507,0.05,111660.0,111650.0,0.33142567]
[1760559437718,0.05,111660.0,111650.0,0.33242567]
[1760559448058,0.05,111660.0,111650.0,0.18342567]
[1760559449152,3.34979283,111680.0,111660.0,0.18807092]
[1760559449358,3.4781837,111680.0,111670.0,0.17909913]
[1760559449562,3.51503461,111680.0,111670.0,0.17909913]
[1760559449771,3.51503461,111680.0,111670.0,0.18122616]
[1760559450207,3.10123178,111680.0,111670.0,0.18122616]
[1760559450429,3.51512427,111680.0,111670.0,0.18122616]
[1760559450645,3.10132144,111680.0,111670.0,0.18122616]
[1760559450858,3.51512427,111680.0,111670.0,0.18122616]
[1760559460803,3.51512659,111680.0,111670.0,0.18122616]
[1760559467943,3.10132376,111680.0,111670.0,0.18122616]
[1760559468150,3.51512659,111680.0,111670.0,0.18122616]